bitfinex/quotes_BTCUSD_20251012
["timestamp","ask_amount","ask_price","bid_price","bid_amount"]
[1760300428029,0.00070592,115110.0,115100.0,0.47461191]
[1760300428781,0.00070592,115110.0,115100.0,0.47561191]
[1760300429837,0.93994154,115110.0,115100.0,0.44167191]
[1760300430648,1.15582839,115110.0,115100.0,0.22499997]
[1760300430866,1.15582839,115110.0,115100.0,0.12499998]
[1760300430867,6.24454773,115110.0,115100.0,0.12499998]
[1760300431082,6.24454773,115110.0,115100.0,0.001]
[1760300431219,5.54391384,115100.0,115090.0,0.0418]
[1760300431429,6.17011946,115100.0,115090.0,0.0418]
[1760300431639,6.31477144,115100.0,115090.0,0.0418]
[1760300432666,6.31577144,115100.0,115090.0,0.0418]
[1760300433682,6.2919288,115100.0,115090.0,0.0418]
[1760300433885,6.20520946,115100.0,115090.0,0.0418]
[1760300434089,1.20520946,115100.0,115090.0,0.0418]
[1760300434293,6.20520946,115100.0,115090.0,0.0418]
[1760300434636,6.20320946,115100.0,115090.0,0.0418]
[1760300434840,6.2909288,115100.0,115090.0,0.0418]
[1760300435094,6.2929288,115100.0,115090.0,0.0418]
[1760300435412,6.2939288,115100.0,115090.0,0.0418]
[1760300435958,6.31000784,115100.0,115090.0,0.0418]
[1760300436179,6.30800784,115100.0,115090.0,0.0418]
[1760300436375,6.30900784,115100.0,115090.0,0.0418]
[1760300436930,6.31705343,115100.0,115090.0,0.0418]
[1760300437715,1.31705343,115100.0,115090.0,0.0418]
[1760300438122,6.31705343,115100.0,115090.0,0.0418]
[1760300438300,6.31705343,115100.0,115090.0,0.03614247]
[1760300438497,1.31705343,115100.0,115090.0,0.03614247]
[1760300438704,6.31705343,115100.0,115090.0,0.03614247]
[1760300438931,6.22833409,115100.0,115090.0,0.03614247]
[1760300439106,5.63103657,115100.0,115090.0,0.03614247]
[1760300439304,6.19818219,115100.0,115090.0,0.03614247]
[1760300439500,6.18210315,115100.0,115090.0,0.03614247]
[1760300439754,5.84110315,115100.0,115090.0,0.23514245]
[1760300439922,1.18110315,115100.0,115090.0,0.23514245]
[1760300440264,6.18210315,115100.0,115090.0,0.23514245]
[1760300440908,6.13996315,115100.0,115090.0,0.26014244]
[1760300441120,6.13896315,115100.0,115090.0,0.26014244]
[1760300441344,6.13996315,115100.0,115090.0,0.43391948]
[1760300441547,5.62620121,115100.0,115090.0,0.46467948]
[1760300441753,5.62620121,115100.0,115090.0,0.48881948]
[1760300441754,0.62520121,115100.0,115090.0,0.48881948]
[1760300441958,5.59311121,115100.0,115090.0,0.53657948]
[1760300442116,5.79896315,115100.0,115090.0,0.31504244]
[1760300442285,6.26977249,115100.0,115090.0,0.03614247]
[1760300442575,6.26877249,115100.0,115090.0,0.26014244]
[1760300442969,1.13796315,115100.0,115090.0,0.29090244]
[1760300443168,6.13796315,115100.0,115090.0,0.29090244]
[1760300443372,5.57081753,115100.0,115090.0,0.29090244]
[1760300443609,6.13796315,115100.0,115090.0,0.26014244]
[1760300443995,6.18005315,115100.0,115090.0,0.26014244]
[1760300444237,6.28497193,115100.0,115090.0,0.26014244]
[1760300444377,6.15416259,115100.0,115090.0,0.26014244]
[1760300444585,5.58701697,115100.0,115090.0,0.26014244]
[1760300444792,6.15416254,115100.0,115090.0,0.26014244]
[1760300444991,6.15416254,115100.0,115090.0,0.43391948]
[1760300445193,6.15416254,115100.0,115090.0,0.26014244]
[1760300445393,6.19625254,115100.0,115090.0,0.26014244]
[1760300445637,6.28497188,115100.0,115090.0,0.26014244]
[1760300446117,6.28497188,115100.0,115090.0,0.02765711]
[1760300446350,6.30367147,115100.0,115090.0,0.02765711]
[1760300446758,5.64780651,115100.0,115090.0,0.01634307]
[1760300446912,6.15416254,115100.0,115090.0,0.04134306]
[1760300447115,5.9814006,115100.0,115090.0,0.41412008]
[1760300447337,5.9814006,115100.0,115090.0,0.44597008]
[1760300447967,0.9824006,115100.0,115090.0,0.47038008]
[1760300448171,5.9824006,115100.0,115090.0,0.47038008]
[1760300448372,5.9814006,115100.0,115090.0,0.47038008]
[1760300448571,5.9804006,115100.0,115090.0,0.47038008]
[1760300448788,0.02524498,115100.0,115090.0,0.51955008]
[1760300448992,0.00904559,115100.0,115090.0,0.51955008]
[1760300449192,0.00804559,115100.0,115090.0,0.51955008]
[1760300449404,0.34804559,115100.0,115090.0,0.51955008]
[1760300449840,0.91519121,115100.0,115090.0,0.51955008]
[1760300450031,5.91526259,115100.0,115090.0,0.51955008]
[1760300450484,5.91526259,115100.0,115090.0,0.52055008]
[1760300450985,5.34,115100.0,115090.0,0.52055008]
[1760300451209,5.34,115100.0,115090.0,0.52155008]
[1760300451411,5.34,115100.0,115090.0,0.52055008]
[1760300451822,5.34,115100.0,115090.0,0.52155008]
[1760300451957,5.34,115100.0,115090.0,0.51955008]
[1760300452160,5.34,115100.0,115090.0,0.52055008]
[1760300453198,5.34,115100.0,115090.0,0.3225501]
[1760300453381,5.34,115100.0,115090.0,0.52155008]
[1760300455781,5.90714562,115100.0,115090.0,0.52155008]
[1760300456009,5.91525828,115100.0,115090.0,0.52155008]
[1760300456627,5.91525828,115100.0,115090.0,0.3215501]
[1760300456827,5.91525828,115100.0,115090.0,0.52055008]
[1760300457032,5.91525828,115100.0,115090.0,0.51955008]
[1760300457297,5.91525912,115100.0,115090.0,0.52055008]
[1760300457512,5.91525912,115100.0,115090.0,0.3205501]
[1760300457914,5.91525912,115100.0,115090.0,0.52055008]
[1760300459153,5.91525912,115100.0,115090.0,0.3215501]
[1760300459412,5.91525912,115100.0,115090.0,0.52055008]
[1760300459613,5.3481135,115100.0,115090.0,0.52055008]
[1760300459836,5.91525912,115100.0,115090.0,0.52055008]
[1760300460720,5.3481135,115100.0,115090.0,0.52055008]
[1760300460927,5.91525912,115100.0,115090.0,0.52055008]
[1760300461125,5.91525912,115100.0,115090.0,0.3215501]
[1760300461461,5.91525912,115100.0,115090.0,0.52055008]
[1760300462002,5.3481135,115100.0,115090.0,0.52055008]
[1760300462618,5.34,115100.0,115090.0,0.6100796]
[1760300462836,0.00070592,115110.0,115100.0,0.39776191]
[1760300462837,5.00070592,115110.0,115100.0,0.39776191]
[1760300463041,5.34882152,115110.0,115100.0,0.49879191]
[1760300465867,5.91596714,115110.0,115100.0,0.49879191]
[1760300466416,5.34882152,115110.0,115100.0,0.49879191]
[1760300466622,6.16111399,115110.0,115100.0,0.22399997]
[1760300466823,6.12055399,115110.0,115100.0,0.02499999]
[1760300467246,1.12055399,115110.0,115100.0,0.02499999]
[1760300467449,6.12055399,115110.0,115100.0,0.02499999]
[1760300468253,6.12055399,115110.0,115100.0,0.22399997]
[1760300469108,6.12055399,115110.0,115100.0,0.25522997]
[1760300469290,6.12055399,115110.0,115100.0,0.22399997]
[1760300470631,6.11555399,115110.0,115100.0,0.22399997]
[1760300470778,6.11555399,115110.0,115100.0,0.02499999]
[1760300471148,6.11555399,115110.0,115100.0,0.22399997]
[1760300471278,6.11173247,115110.0,115100.0,0.22399997]
[1760300471638,6.15229247,115110.0,115100.0,0.22399997]
[1760300471983,5.34,115110.0,115100.0,0.27868997]
[1760300472193,5.90714562,115110.0,115100.0,0.49879191]
[1760300472799,0.90714562,115110.0,115100.0,0.49879191]
[1760300473222,5.90714562,115110.0,115100.0,0.49879191]
[1760300473804,6.11173247,115110.0,115100.0,0.45245191]
[1760300474773,1.11173247,115110.0,115100.0,0.45245191]
[1760300474928,6.11173247,115110.0,115100.0,0.45245191]
[1760300475307,6.20045181,115110.0,115100.0,0.45245191]
[1760300475522,5.34,115110.0,115100.0,0.45245191]
[1760300475747,5.90714562,115110.0,115100.0,0.45245191]
[1760300476532,6.08089247,115110.0,115100.0,0.45245191]
[1760300476889,1.08089247,115110.0,115100.0,0.49879191]
[1760300477096,6.08089247,115110.0,115100.0,0.49879191]
[1760300477299,5.90714562,115110.0,115100.0,0.49879191]
[1760300477554,5.93798562,115110.0,115100.0,0.45245191]
[1760300477801,5.34,115110.0,115100.0,0.49879191]
[1760300478047,5.93798562,115110.0,115100.0,0.49879191]
[1760300478782,6.11173247,115110.0,115100.0,0.45245191]
[1760300479009,0.54458685,115110.0,115100.0,0.45245191]
[1760300479213,6.11173247,115110.0,115100.0,0.45245191]
[1760300480126,1.15229247,115110.0,115100.0,0.39776191]
[1760300480329,6.15229247,115110.0,115100.0,0.43952191]
[1760300480568,6.11173247,115110.0,115100.0,0.43952191]
[1760300481632,1.11173247,115110.0,115100.0,0.43952191]
[1760300481864,6.15229247,115110.0,115100.0,0.26575997]
[1760300482263,1.15229247,115110.0,115100.0,0.26575997]
[1760300482489,6.15229247,115110.0,115100.0,0.43952191]
[1760300483009,6.15229247,115110.0,115100.0,0.26575997]
[1760300483209,6.15229247,115110.0,115100.0,0.06675999]
[1760300483415,1.15229247,115110.0,115100.0,0.26575997]
[1760300483651,6.15229247,115110.0,115100.0,0.26575997]
[1760300483870,6.15229247,115110.0,115100.0,0.43952191]
[1760300484509,6.15229247,115110.0,115100.0,0.26575997]
[1760300484682,1.15229247,115110.0,115100.0,0.26575997]
[1760300484885,6.15229247,115110.0,115100.0,0.26575997]
[1760300485147,6.15229247,115110.0,115100.0,0.43952191]
[1760300485667,6.15218166,115110.0,115100.0,0.43952191]
[1760300486669,6.06145446,115110.0,115100.0,0.43952191]
[1760300487447,5.54458685,115110.0,115100.0,0.51709191]
[1760300487601,5.54458685,115110.0,115100.0,0.54055191]
[1760300487602,5.84714761,115110.0,115100.0,0.54055191]
[1760300487805,0.84714761,115110.0,115100.0,0.54055191]
[1760300488002,5.84714761,115110.0,115100.0,0.49421191]
[1760300488457,6.02089446,115110.0,115100.0,0.49421191]
[1760300488901,1.02089446,115110.0,115100.0,0.43952191]
[1760300489116,6.02089446,115110.0,115100.0,0.43952191]
[1760300489569,6.02089446,115110.0,115100.0,0.26575997]
[1760300489769,6.05984446,115110.0,115100.0,0.43952191]
[1760300490005,1.05984446,115110.0,115100.0,0.43952191]
[1760300490163,6.05984446,115110.0,115100.0,0.43952191]
[1760300490794,1.05984446,115110.0,115100.0,0.43952191]
[1760300491005,6.05984446,115110.0,115100.0,0.43952191]
[1760300492624,5.54458685,115110.0,115100.0,0.47139191]
[1760300492829,5.81630761,115110.0,115100.0,0.54329191]
[1760300492989,0.81630761,115110.0,115100.0,0.54329191]
[1760300493188,5.81630761,115110.0,115100.0,0.54329191]
[1760300493595,0.49164761,115120.0,115110.0,0.39774682]
[1760300493816,5.52218224,115120.0,115110.0,0.45347682]
[1760300494022,5.86218224,115120.0,115110.0,0.45347682]
[1760300494746,6.03591399,115120.0,115110.0,0.45347682]
[1760300495296,6.03591399,115120.0,115110.0,0.39774682]
[1760300495496,7.02747921,115120.0,115110.0,0.39774682]
[1760300495742,6.07486399,115120.0,115110.0,0.39774682]
[1760300495942,7.02747921,115120.0,115110.0,0.39774682]
[1760300496380,6.07486399,115120.0,115110.0,0.22399997]
[1760300496743,7.02747921,115120.0,115110.0,0.22399997]
[1760300497737,7.04658419,115120.0,115110.0,0.22399997]
[1760300497945,7.07292683,115120.0,115100.0,0.26575997]
[1760300498181,5.68900446,115110.0,115100.0,0.26575997]
[1760300498513,0.68900446,115110.0,115100.0,0.26575997]
[1760300498665,6.05904446,115110.0,115100.0,0.06675999]
[1760300499068,1.1477638,115110.0,115100.0,0.06675999]
[1760300499268,2.20009034,115110.0,115100.0,0.04176]
[1760300499403,0.51377704,115090.0,115080.0,0.26575997]
[1760300499606,6.98084251,115090.0,115080.0,0.24075998]
[1760300499838,7.04983251,115090.0,115080.0,0.24075998]
[1760300500033,2.13855185,115090.0,115080.0,0.24075998]
[1760300500233,7.13855185,115090.0,115080.0,0.24075998]
[1760300500477,7.13855185,115090.0,115080.0,0.04176]
[1760300500678,7.13855185,115090.0,115080.0,0.24075998]
[1760300500820,2.13855185,115090.0,115080.0,0.24075998]
[1760300501023,7.13855185,115090.0,115080.0,0.24075998]
[1760300501381,7.13855185,115090.0,115080.0,0.04176]
[1760300501530,7.13959048,115090.0,115080.0,0.24075998]
[1760300502125,7.14159048,115090.0,115080.0,0.04176]
[1760300502327,7.14159048,115090.0,115080.0,0.24075998]
[1760300502554,7.14059048,115090.0,115080.0,0.24075998]
[1760300503023,7.14159048,115090.0,115080.0,0.24075998]
[1760300503495,0.51379214,115080.0,115060.0,0.25459997]
[1760300503697,6.07322106,115070.0,115060.0,0.25459997]
[1760300503896,6.07322106,115070.0,115060.0,0.29635997]
[1760300504114,6.3157257,115070.0,115060.0,0.09735999]
[1760300504325,6.3157257,115070.0,115060.0,0.29635997]
[1760300504756,6.3157257,115070.0,115060.0,0.29650839]
[1760300504978,6.40444502,115070.0,115060.0,0.29650839]
[1760300505130,1.40444502,115070.0,115060.0,0.29650839]
[1760300505336,6.40444502,115070.0,115060.0,0.09750841]
[1760300505751,6.40444502,115070.0,115060.0,0.29650839]
[1760300505965,1.40444502,115070.0,115060.0,0.29650839]
[1760300506420,6.40444502,115070.0,115060.0,0.29650839]
[1760300506620,5.59656724,115070.0,115060.0,0.29650839]
[1760300506790,6.2774857,115070.0,115060.0,0.29650839]
[1760300507236,6.3157257,115070.0,115060.0,0.29650839]
[1760300508048,1.3157257,115070.0,115060.0,0.29650839]
[1760300508248,6.3157257,115070.0,115060.0,0.2715084]
[1760300508453,6.40444504,115070.0,115060.0,0.2715084]
[1760300509070,1.40544504,115070.0,115060.0,0.2715084]
[1760300509358,6.40544504,115070.0,115060.0,0.2715084]
[1760300510219,6.40544504,115070.0,115060.0,0.07250842]
[1760300510814,1.40544504,115070.0,115060.0,0.04190842]
[1760300511043,6.43301517,115070.0,115060.0,0.04190842]
[1760300511257,6.47938295,115070.0,115060.0,0.04190842]
[1760300512137,1.47938295,115070.0,115060.0,0.04190842]
[1760300512335,6.40544504,115070.0,115060.0,0.04190842]
[1760300512562,6.3167257,115070.0,115060.0,0.04190842]
[1760300514432,6.39065477,115070.0,115060.0,0.04190842]
[1760300514826,6.43477709,115070.0,115060.0,0.04190842]
[1760300516362,6.41610453,115070.0,115060.0,0.04190842]
[1760300517625,1.43476814,115070.0,115060.0,0.04190842]
[1760300517789,6.52348748,115070.0,115060.0,0.04190842]
[1760300518394,6.49803772,115070.0,115060.0,0.04190842]
[1760300519545,1.52348748,115070.0,115060.0,0.04190842]
[1760300519715,5.51386768,115030.0,115020.0,0.22399997]
[1760300519890,6.32004614,115030.0,115020.0,0.24075998]
[1760300520433,6.32004614,115030.0,115020.0,0.04176]
[1760300521065,6.33624955,115030.0,115020.0,0.04176]
[1760300521288,6.33624955,115030.0,115020.0,0.24075998]
[1760300521754,6.36383855,115030.0,115020.0,0.04176]
[1760300522180,6.39399045,115030.0,115020.0,0.04176]
[1760300522387,6.50815955,115030.0,115020.0,0.04176]
[1760300522589,6.52682038,115030.0,115020.0,0.04176]
[1760300522764,6.50137062,115030.0,115020.0,0.04176]
[1760300522970,6.48270979,115030.0,115020.0,0.04176]
[1760300523730,6.48370979,115030.0,115020.0,0.04176]
[1760300523981,6.30984211,115030.0,115020.0,0.04176]
[1760300524202,6.30984211,115030.0,115020.0,0.44363278]
[1760300524203,5.06667341,115030.0,115020.0,0.44363278]
[1760300524415,5.78583187,115030.0,115020.0,0.46863277]
[1760300524629,6.12583187,115030.0,115020.0,0.46863277]
[1760300525015,6.12683187,115030.0,115020.0,0.46863277]
[1760300525227,6.21555121,115030.0,115020.0,0.46863277]
[1760300525455,6.38941889,115030.0,115020.0,0.43964277]
[1760300525680,6.38841889,115030.0,115020.0,0.43964277]
[1760300526002,6.12583187,115030.0,115020.0,0.43964277]
[1760300526235,1.12583187,115030.0,115020.0,0.43964277]
[1760300526456,5.78583187,115030.0,115020.0,0.49215277]
[1760300527122,6.12583187,115030.0,115020.0,0.49215277]
[1760300527327,5.78583187,115030.0,115020.0,0.43964277]
[1760300527529,6.12583187,115030.0,115020.0,0.43964277]
[1760300527732,6.12483187,115030.0,115020.0,0.43964277]
[1760300528762,6.12483187,115030.0,115020.0,0.43864277]
[1760300528934,6.29869955,115030.0,115020.0,0.43864277]
[1760300529706,6.12483187,115030.0,115020.0,0.43864277]
[1760300530353,6.42496889,115030.0,115020.0,0.43864277]
[1760300530954,1.42496889,115030.0,115020.0,0.43864277]
[1760300531106,6.42496889,115030.0,115020.0,0.43864277]
[1760300531677,1.42496889,115030.0,115020.0,0.43864277]
[1760300531890,6.33624955,115030.0,115020.0,0.04076]
[1760300532093,6.33624955,115030.0,115020.0,0.23975998]
[1760300532379,1.33624955,115030.0,115020.0,0.23975998]
[1760300532758,6.33624955,115030.0,115020.0,0.04076]
[1760300532962,6.42496889,115030.0,115020.0,0.04076]
[1760300533132,6.42496889,115030.0,115020.0,0.23975998]
[1760300533333,6.42596889,115030.0,115020.0,0.23975998]
[1760300533781,6.42596889,115030.0,115020.0,0.04076]
[1760300534189,1.42596889,115030.0,115020.0,0.04076]
[1760300534534,6.42596889,115030.0,115020.0,0.04076]
[1760300534774,6.44469513,115030.0,115020.0,0.04076]
[1760300534986,1.44469513,115030.0,115020.0,0.23975998]
[1760300535204,6.44469513,115030.0,115020.0,0.04076]
[1760300535409,6.53397669,115030.0,115020.0,0.04076]
[1760300535558,1.53397669,115030.0,115020.0,0.04076]
[1760300535766,6.53397669,115030.0,115020.0,0.04076]
[1760300535936,6.53397682,115030.0,115020.0,0.04076]
[1760300536851,1.53397682,115030.0,115020.0,0.04076]
[1760300537053,1.50638782,115030.0,115020.0,0.04076]
[1760300537285,6.50638782,115030.0,115020.0,0.04076]
[1760300537663,5.73366485,115030.0,115020.0,0.04076]
[1760300537908,1.44469513,115030.0,115020.0,0.04076]
[1760300538105,6.44469513,115030.0,115020.0,0.04076]
[1760300538530,1.45282266,115030.0,115020.0,0.04076]
[1760300538850,6.45282266,115030.0,115020.0,0.04076]
[1760300539919,1.45282266,115030.0,115020.0,0.04076]
[1760300540126,6.45282266,115030.0,115020.0,0.04076]
[1760300542717,1.45282266,115030.0,115020.0,0.04076]
[1760300542948,6.45282266,115030.0,115020.0,0.04076]
[1760300543168,1.45282266,115030.0,115020.0,0.04076]
[1760300543373,1.47623527,115030.0,115020.0,0.04076]
[1760300543584,6.47623527,115030.0,115020.0,0.04076]
[1760300544218,1.47623527,115030.0,115020.0,0.04076]
[1760300544444,6.47623527,115030.0,115020.0,0.04076]
[1760300546222,6.27895498,115030.0,115020.0,0.2146428]
[1760300546444,0.78583187,115030.0,115020.0,0.49115277]
[1760300546657,6.12583187,115030.0,115020.0,0.49115277]
[1760300546860,5.40667341,115030.0,115020.0,0.49115277]
[1760300546983,5.40567341,115030.0,115020.0,0.49115277]
[1760300547363,6.16856767,115030.0,115020.0,0.49115277]
[1760300547702,6.16880311,115030.0,115020.0,0.49115277]
[1760300547903,1.16880311,115030.0,115020.0,0.49115277]
[1760300548141,6.16880311,115030.0,115020.0,0.49115277]
[1760300548375,5.78506731,115030.0,115020.0,0.49115277]
[1760300548513,5.03497341,115030.0,115020.0,0.53620277]
[1760300548781,5.60272847,115030.0,115020.0,0.53620277]
[1760300549262,5.58652506,115030.0,115020.0,0.53620277]
[1760300549442,5.92652506,115030.0,115020.0,0.53620277]
[1760300550264,5.90775506,115030.0,115020.0,0.53620277]
[1760300550904,0.22472227,115060.0,115050.0,0.17383746]
[1760300550905,0.04218261,115060.0,115050.0,0.17383746]
[1760300551106,5.61093374,115060.0,115050.0,0.45135743]
[1760300551341,5.58402771,115060.0,115050.0,0.49531743]
[1760300551548,0.32477108,115080.0,115060.0,0.17380829]
[1760300551757,5.90775506,115070.0,115060.0,0.39637827]
[1760300551973,5.0,115070.0,115060.0,0.49528826]
[1760300552182,5.0,115070.0,115060.0,0.49428826]
[1760300552393,5.56775506,115070.0,115060.0,0.49428826]
[1760300552636,5.59636506,115070.0,115060.0,0.45032826]
[1760300552847,5.93636506,115070.0,115060.0,0.45032826]
[1760300553685,5.93636506,115070.0,115060.0,0.45132826]
[1760300554115,6.1101723,115070.0,115060.0,0.27851997]
[1760300554320,6.23506164,115070.0,115060.0,0.19999998]
[1760300554533,6.25129111,115070.0,115060.0,0.19999998]
[1760300554727,1.25129111,115070.0,115060.0,0.19999998]
[1760300554932,6.23506164,115070.0,115060.0,0.19899998]
[1760300555333,1.23606164,115070.0,115060.0,0.19999998]
[1760300555598,6.23606164,115070.0,115060.0,0.19899998]
[1760300555827,5.66830658,115070.0,115060.0,0.19899998]
[1760300556066,6.23606164,115070.0,115060.0,0.19899998]
[1760300556274,0.67382235,115060.0,115050.0,0.39783684]
[1760300556542,0.78895741,115060.0,115050.0,0.39783684]
[1760300557003,5.78895741,115060.0,115050.0,0.39783684]
[1760300557218,2.48531346,115050.0,115040.0,0.22399997]
[1760300557435,5.77776252,115050.0,115040.0,0.39785254]
[1760300557655,5.80637252,115050.0,115040.0,0.22399997]
[1760300558131,5.80637252,115050.0,115040.0,0.39785254]
[1760300558132,0.80637252,115050.0,115040.0,0.39785254]
[1760300558353,0.77020252,115050.0,115040.0,0.39785254]
[1760300558565,5.79593348,115050.0,115040.0,0.22399997]
[1760300559411,5.79593348,115050.0,115040.0,0.39785254]
[1760300559838,5.83210348,115050.0,115040.0,0.39785254]
[1760300560175,0.83210348,115050.0,115040.0,0.39785254]
[1760300560404,5.80637252,115050.0,115040.0,0.39785254]
[1760300561673,0.77020252,115050.0,115040.0,0.39785254]
[1760300561801,5.77020252,115050.0,115040.0,0.39785254]
[1760300562381,0.77020252,115050.0,115040.0,0.39785254]
[1760300562597,5.77020252,115050.0,115040.0,0.39785254]
[1760300563195,0.59636506,115050.0,115040.0,0.39785254]
[1760300563397,5.59636506,115050.0,115040.0,0.39785254]
[1760300563767,0.6661728,115060.0,115050.0,0.17383746]
[1760300563768,0.35877,115060.0,115050.0,0.17383746]
[1760300564169,6.12896601,115060.0,115050.0,0.22894998]
[1760300564347,6.1919647,115060.0,115050.0,0.22894998]
[1760300564504,6.2281347,115060.0,115050.0,0.19899998]
[1760300565884,1.2281347,115060.0,115050.0,0.19899998]
[1760300566070,6.2281347,115060.0,115050.0,0.19899998]
[1760300566491,6.2281347,115060.0,115040.0,0.19885256]
[1760300566492,0.17383746,115050.0,115040.0,0.39784955]
[1760300566667,5.80775252,115050.0,115040.0,0.39784955]
[1760300566868,5.59873506,115050.0,115040.0,0.42679955]
[1760300567274,5.59873506,115050.0,115040.0,0.44831955]
[1760300567820,0.59873506,115050.0,115040.0,0.44831955]
[1760300567996,5.59873506,115050.0,115040.0,0.44831955]
[1760300568508,0.23018304,115080.0,115070.0,0.27280723]
[1760300568509,0.58530332,115080.0,115070.0,0.27280723]
[1760300568717,5.08917188,115080.0,115070.0,0.49449721]
[1760300568920,5.56790332,115080.0,115070.0,0.49449721]
[1760300569128,0.00014826,115080.0,115070.0,0.49449721]
[1760300569530,0.34014826,115080.0,115070.0,0.49449721]
[1760300570348,0.00014826,115080.0,115070.0,0.49449721]
[1760300570839,0.34014826,115080.0,115070.0,0.49449721]
[1760300571038,0.34014826,115080.0,115070.0,0.49549721]
[1760300571985,0.34014826,115080.0,115070.0,0.49649721]
[1760300579007,1.16411546,115080.0,115070.0,0.22599997]
[1760300579263,5.95571332,115080.0,115070.0,0.42875721]
[1760300579473,6.12950546,115080.0,115070.0,0.42875721]
[1760300580016,6.12950546,115080.0,115070.0,0.42775721]
[1760300580428,5.95571332,115080.0,115070.0,0.42775721]
[1760300580615,5.95571332,115080.0,115070.0,0.44849721]
[1760300581101,0.95571332,115080.0,115070.0,0.44849721]
[1760300581295,5.95571332,115080.0,115070.0,0.44849721]
[1760300581710,5.34014826,115080.0,115070.0,0.49462721]
[1760300583485,5.90790332,115080.0,115070.0,0.49562721]
[1760300583704,5.90790332,115080.0,115070.0,0.53738721]
[1760300583909,5.90790332,115080.0,115070.0,0.53838721]
[1760300583910,5.34014826,115080.0,115070.0,0.53838721]
[1760300584324,0.34014826,115080.0,115070.0,0.53838721]
[1760300584529,0.00014826,115080.0,115070.0,0.53838721]
[1760300585780,5.56790332,115080.0,115070.0,0.33938723]
[1760300585996,5.56790332,115080.0,115070.0,0.53838721]
[1760300587248,5.56790332,115080.0,115070.0,0.33938723]
[1760300587472,5.00014826,115080.0,115070.0,0.33938723]
[1760300587674,5.00014826,115080.0,115070.0,0.53838721]
[1760300587910,5.00014826,115080.0,115070.0,0.33938723]
[1760300588142,6.04298266,115080.0,115070.0,0.26775997]
[1760300588355,1.2513848,115080.0,115070.0,0.44156721]
[1760300588560,6.2513848,115080.0,115070.0,0.44156721]
[1760300588984,6.2513848,115080.0,115070.0,0.26775997]
[1760300589194,6.2513848,115080.0,115070.0,0.44156721]
[1760300589414,6.2513848,115080.0,115070.0,0.24256723]
[1760300589623,6.2513848,115080.0,115070.0,0.44156721]
[1760300589830,6.2513848,115080.0,115070.0,0.43956721]
[1760300590041,6.2513848,115080.0,115070.0,0.26575997]
[1760300590703,6.27928805,115080.0,115070.0,0.04176]
[1760300590908,6.2513848,115080.0,115070.0,0.04176]
[1760300591114,1.2513848,115080.0,115070.0,0.04176]
[1760300591330,6.2513848,115080.0,115070.0,0.24075998]
[1760300591529,6.2513848,115080.0,115070.0,0.04176]
[1760300591886,6.2513848,115080.0,115070.0,0.24075998]
[1760300592089,6.2513848,115080.0,115070.0,0.04176]
[1760300592915,6.25950614,115080.0,115070.0,0.24075998]
[1760300593319,1.25950614,115080.0,115070.0,0.24075998]
[1760300593524,6.1717868,115080.0,115070.0,0.24075998]
[1760300593909,6.1717868,115080.0,115070.0,0.04176]
[1760300594115,6.1717868,115080.0,115070.0,0.24075998]
[1760300595990,1.1717868,115080.0,115070.0,0.04176]
[1760300596219,6.1717868,115080.0,115070.0,0.24075998]
[1760300596335,1.1717868,115080.0,115070.0,0.24075998]
[1760300596542,6.1717868,115080.0,115070.0,0.24075998]
[1760300597249,1.1717868,115080.0,115070.0,0.24075998]
[1760300597453,6.1717868,115080.0,115070.0,0.24075998]
[1760300598088,6.1717868,115080.0,115070.0,0.41456722]
[1760300598368,1.21399499,115080.0,115070.0,0.41456722]
[1760300598574,1.26064022,115080.0,115070.0,0.04176]
[1760300598865,6.26064022,115080.0,115070.0,0.04176]
[1760300599262,1.26064022,115080.0,115070.0,0.04176]
[1760300599473,6.26064022,115080.0,115070.0,0.04176]
[1760300601635,1.26064022,115080.0,115070.0,0.04176]
[1760300601816,1.26064022,115080.0,115070.0,0.24075998]
[1760300601966,6.23273697,115080.0,115070.0,0.24075998]
[1760300602850,6.23273697,115080.0,115070.0,0.04176]
[1760300603078,6.28858934,115080.0,115070.0,1e-08]
[1760300603279,0.54397425,115060.0,115050.0,0.04176]
[1760300603567,6.24558408,115060.0,115050.0,0.04176]
[1760300603773,6.30197819,115060.0,115050.0,0.04176]
[1760300603952,6.33658819,115060.0,115050.0,0.04176]
[1760300604352,1.33658819,115060.0,115050.0,0.04176]
[1760300604578,6.36228866,115060.0,115050.0,0.04176]
[1760300605116,1.36228866,115060.0,115050.0,0.04176]
[1760300605322,6.33658819,115060.0,115050.0,0.04176]
[1760300605528,5.47613954,115060.0,115050.0,0.04176]
[1760300605727,0.78840741,115060.0,115050.0,0.41459744]
[1760300606159,1.16401741,115060.0,115050.0,0.41459744]
[1760300606370,0.82401741,115060.0,115050.0,0.41459744]
[1760300606576,0.38683,115060.0,115050.0,0.41459744]
[1760300606813,1.12840741,115060.0,115050.0,0.41459744]
[1760300607053,0.01597,115070.0,115060.0,0.39780877]
[1760300607255,0.17394121,115080.0,115070.0,0.37280722]
[1760300607462,0.58271434,115080.0,115070.0,0.37280722]
[1760300607864,0.61599434,115080.0,115070.0,0.37280722]
[1760300608292,1.1837494,115080.0,115070.0,0.04176]
[1760300608720,1.1837494,115080.0,115070.0,0.41456722]
[1760300609437,1.1837494,115080.0,115070.0,0.21556724]
[1760300609654,1.18333571,115080.0,115070.0,0.41456722]
[1760300610532,1.3348665,115080.0,115070.0,0.41456722]
[1760300613635,6.3348665,115080.0,115070.0,0.24075998]
[1760300614244,6.3348665,115080.0,115070.0,0.21556724]
[1760300614422,6.3348665,115080.0,115070.0,0.41456722]
[1760300614624,6.3348665,115080.0,115070.0,0.24075998]
[1760300614838,6.3348665,115080.0,115070.0,0.41456722]
[1760300616503,6.16107355,115080.0,115070.0,0.41456722]
[1760300616709,6.33486569,115080.0,115070.0,0.21556724]
[1760300616926,6.33486569,115080.0,115070.0,0.41456722]
[1760300617866,6.33486569,115080.0,115070.0,0.21556724]
[1760300618024,6.33486569,115080.0,115070.0,0.41456722]
[1760300618228,6.16107355,115080.0,115070.0,0.41456722]
[1760300618466,6.33486569,115080.0,115070.0,0.41456722]
[1760300618840,6.33486569,115080.0,115070.0,0.21556724]
[1760300619078,6.33486569,115080.0,115070.0,0.41456722]
[1760300619287,1.08855042,115080.0,115070.0,0.44260722]
[1760300619484,0.00014826,115080.0,115070.0,0.53328721]
[1760300620650,0.00014826,115080.0,115070.0,0.62381673]
[1760300620651,1e-08,115080.0,115070.0,0.62381673]
[1760300621267,1e-08,115080.0,115070.0,0.62481673]
[1760300621895,1e-08,115080.0,115070.0,0.62281673]
[1760300622100,1e-08,115080.0,115070.0,0.62381673]
[1760300622296,1e-08,115080.0,115070.0,0.62481673]
[1760300622505,1e-08,115080.0,115070.0,0.62381673]
[1760300622876,1e-08,115080.0,115070.0,0.62581673]
[1760300623902,1e-08,115080.0,115070.0,0.42681675]
[1760300624090,1e-08,115080.0,115070.0,0.62581673]
[1760300628904,1e-08,115080.0,115070.0,0.65596863]
[1760300629138,1e-08,115080.0,115070.0,0.60081674]
[1760300629364,1e-08,115080.0,115070.0,0.62581673]